bitfinex-derivatives/quotes_ETHF0:USTF0_20250923
["timestamp","ask_amount","ask_price","bid_price","bid_amount"]
[1758608017543,0.3227,4196.8,4196.7,0.4286]
[1758608017743,0.3227,4196.8,4196.7,2.58168659]
[1758608019448,0.4474,4197.0,4196.9,0.42858]
[1758608019643,0.4474,4197.0,4196.9,3.88038]
[1758608019951,0.1247,4197.5,4196.9,5.78946659]
[1758608020156,0.4474,4197.5,4197.4,3.2078]
[1758608020357,0.4474,4197.5,4197.4,3.4518]
[1758608020646,0.8745,4197.5,4197.4,5.36088659]
[1758608021253,0.6683,4197.5,4197.4,5.36088659]
[1758608021440,0.8745,4197.5,4197.4,44.0078]
[1758608021645,0.8745,4197.5,4197.4,44.2518]
[1758608022145,0.8745,4197.5,4197.4,46.16088659]
[1758608022653,1.10851608,4197.5,4197.4,46.16088659]
[1758608022841,3.01760267,4197.5,4197.4,40.8]
[1758608023155,0.7498,4197.2,4197.1,0.244]
[1758608023447,0.3227,4196.9,4196.8,3.2078]
[1758608023652,0.98381608,4196.9,4196.8,3.4518]
[1758608026050,0.98381608,4196.9,4196.0,3.2078]
[1758608026051,0.7498,4196.1,4196.0,3.2078]
[1758608026359,0.98381608,4196.1,4196.0,5.78955659]
[1758608026554,0.98381608,4196.1,4196.0,46.58955659]
[1758608027648,0.98391213,4196.1,4196.0,46.58955659]
[1758608029757,0.77771213,4196.1,4196.0,46.58955659]
[1758608032759,0.77771213,4196.1,4196.0,45.91688659]
[1758608032951,0.77771213,4196.1,4196.0,46.16088659]
[1758608033258,0.77771213,4196.1,4196.0,45.91688659]
[1758608033456,0.77771213,4196.1,4196.0,46.16088659]
[1758608034843,0.55681213,4196.1,4196.0,46.16088659]
[1758608035052,0.55681213,4196.1,4196.0,44.2518]
[1758608035445,0.23411213,4196.1,4196.0,48.2518]
[1758608035755,0.55681213,4196.1,4196.0,44.2518]
[1758608035955,0.23411213,4196.1,4196.0,44.2518]
[1758608036651,0.23411213,4196.1,4196.0,46.45862147]
[1758608037654,0.1305,4196.5,4196.0,46.45862147]
[1758608037859,0.3227,4196.3,4196.0,45.32348]
[1758608038361,0.3227,4196.3,4196.1,0.42866]
[1758608038561,0.3227,4196.3,4196.2,0.244]
[1758608038951,0.3227,4196.3,4196.1,0.42866]
[1758608038952,0.5436,4196.2,4196.1,2.63548147]
[1758608039161,0.5436,4196.2,4196.1,2.87948147]
[1758608041065,0.7498,4196.2,4196.1,2.87948147]
[1758608041557,0.3227,4196.2,4196.1,2.87948147]
[1758608042468,0.1305,4196.5,4196.4,0.42863]
[1758608042766,0.1305,4196.5,4196.4,2.87945147]
[1758608042965,0.4368,4196.5,4196.4,2.87945147]
[1758608043169,0.1305,4197.0,4196.9,0.42858]
[1758608043364,0.1305,4197.0,4196.9,0.67258]
[1758608043560,0.3377,4197.5,4197.4,0.42853]
[1758608043759,0.5497,4197.5,4197.4,0.67253]
[1758608044964,0.5497,4197.5,4197.4,0.244]
[1758608045167,0.856,4197.5,4197.4,0.244]
[1758608046069,0.7313,4197.4,4197.3,0.42853]
[1758608046265,0.7313,4197.4,4197.3,0.67253]
[1758608046466,0.7313,4197.4,4197.3,0.42853]
[1758608046663,0.7313,4197.4,4197.3,0.67253]
[1758608049868,0.96011303,4197.4,4197.3,0.42853]
[1758608050069,4.96011303,4197.4,4197.3,0.67253]
[1758608050567,4.96011303,4197.4,4197.3,0.42853]
[1758608052269,5.38865303,4197.4,4197.1,0.67256]
[1758608052475,0.1283,4196.5,4196.4,0.42863]
[1758608052663,0.87641303,4196.5,4196.4,0.67263]
[1758608053064,0.87641303,4196.5,4196.4,41.47263]
[1758608053270,0.66341303,4196.5,4196.4,41.47263]
[1758608055373,0.66355062,4196.5,4196.4,43.67945147]
[1758608056375,0.66356353,4196.5,4196.4,43.67945147]
[1758608057573,0.66356353,4196.5,4196.4,43.25082147]
[1758608058466,0.4253,4196.2,4196.1,3.63646]
[1758608058661,0.95876353,4196.2,4196.1,6.08728147]
[1758608058873,0.95876353,4196.2,4196.1,46.88728147]
[1758608059073,0.74046353,4196.2,4196.1,46.88728147]
[1758608059477,0.74050537,4196.2,4196.1,46.88728147]
[1758608060576,0.53350537,4196.2,4196.1,46.88728147]
[1758608061974,0.22900537,4196.2,4196.1,46.88728147]
[1758608062970,0.53350537,4196.2,4196.1,46.64328147]
[1758608063169,0.53350537,4196.2,4196.1,46.88728147]
[1758608063776,0.53350537,4196.2,4196.1,46.64328147]
[1758608063977,0.22900537,4196.2,4196.1,46.88628147]
[1758608064379,0.53350537,4196.2,4196.1,46.88628147]
[1758608065179,0.53350537,4196.2,4196.1,46.64328147]
[1758608065680,0.53350537,4196.2,4196.1,46.88628147]
[1758608067778,0.53350537,4196.2,4196.1,44.67946]
[1758608068276,0.53350537,4196.2,4196.1,44.43646]
[1758608068481,0.53350537,4196.2,4196.1,44.67946]
[1758608069472,0.53350537,4196.2,4196.1,3.2078]
[1758608069679,0.1264,4196.0,4195.6,3.2078]
[1758608069984,0.95880537,4195.9,4195.8,0.42869]
[1758608072578,0.95880537,4195.9,4195.8,2.63551147]
[1758608073087,0.53350537,4195.9,4195.8,2.63551147]
[1758608074393,0.74040537,4195.9,4195.8,2.87851147]
[1758608074892,0.96180537,4195.9,4195.8,0.67169]
[1758608075585,0.53350537,4195.9,4195.8,2.87851147]
[1758608076094,0.96180537,4195.9,4195.8,2.87851147]
[1758608076493,0.96180537,4195.9,4195.8,43.67851147]
[1758608080288,0.76680537,4195.9,4195.8,0.42869]
[1758608080585,0.55990537,4195.9,4195.8,2.87851147]
[1758608080780,0.55990537,4195.9,4195.8,43.67851147]
[1758608082386,0.4573,4196.5,4196.4,0.42863]
[1758608082693,0.4573,4196.5,4196.4,2.87845147]
[1758608083286,0.3352,4197.0,4196.9,0.42858]
[1758608083485,0.8875,4197.0,4196.9,0.67158]
[1758608084390,0.8875,4197.0,4196.5,1.07154]
[1758608084391,0.5566,4197.0,4196.8,0.42858]
[1758608084592,0.7592,4196.9,4196.8,0.42858]
[1758608084903,0.7592,4196.9,4196.8,0.67158]
[1758608087200,0.7592,4196.9,4196.8,0.42858]
[1758608087401,0.7592,4196.9,4196.8,0.67158]
[1758608089591,0.7592,4196.8,4196.7,0.67159]
[1758608090696,0.7592,4196.8,4196.7,0.42859]
[1758608091094,0.3386,4196.5,4196.4,0.243]
[1758608091300,0.8909,4196.5,4196.4,0.243]
[1758608091505,0.8909,4196.5,4196.4,0.42863]
[1758608091707,0.8909,4196.5,4196.4,0.243]
[1758608092605,0.7592,4196.4,4196.3,0.67163]
[1758608094408,0.98554242,4196.4,4196.3,0.67163]
[1758608094602,0.98554242,4196.4,4196.3,0.243]
[1758608094813,0.98554242,4196.4,4196.3,0.67164]
[1758608095907,0.98554242,4196.4,4196.3,0.42864]
[1758608098112,0.98554242,4196.4,4196.1,0.42866]
[1758608098113,0.4283,4196.2,4196.1,0.42866]
[1758608098313,0.4283,4196.2,4196.1,0.67166]
[1758608098314,0.98554242,4196.2,4196.1,0.67166]
[1758608098511,0.98560539,4196.2,4196.1,0.67166]
[1758608098713,0.98560539,4196.2,4196.1,41.47166]
[1758608099215,0.98560539,4196.2,4196.1,41.22866]
[1758608099514,0.98560539,4196.2,4196.1,41.47166]
[1758608099710,0.98560539,4196.2,4196.1,41.22866]
[1758608099906,0.98560539,4196.2,4196.1,41.043]
[1758608100302,0.55730539,4196.2,4196.1,42.95056612]
[1758608101517,0.55730539,4196.2,4196.1,41.043]
[1758608103013,0.98320539,4196.2,4196.1,0.243]
[1758608103514,0.98320539,4196.2,4195.5,1.07178]
[1758608103515,0.1314,4195.5,4195.1,5.32329333]
[1758608103819,0.7577,4195.2,4195.1,3.63656]
[1758608104019,0.98414544,4195.2,4195.1,3.2078]
[1758608104222,0.98414544,4195.2,4195.0,0.67177]
[1758608104223,0.7577,4195.1,4195.0,0.67177]
[1758608104427,0.98414544,4195.1,4195.0,0.67177]
[1758608104622,0.98414544,4195.1,4195.0,41.47177]
[1758608106726,0.55824544,4195.1,4195.0,41.47177]
[1758608109214,0.55824544,4195.1,4195.0,41.043]
[1758608109825,0.55824544,4195.1,4195.0,40.8]
[1758608110227,0.55824544,4195.1,4195.0,41.043]
[1758608111720,0.5803965,4195.1,4195.0,41.043]
[1758608112526,0.5803965,4195.1,4195.0,42.95056612]
[1758608112826,0.5803965,4195.1,4195.0,41.043]
[1758608113828,0.3318,4194.7,4194.6,0.42881]
[1758608114034,0.3318,4194.7,4194.6,0.67181]
[1758608114035,1.0062965,4194.7,4194.6,0.67181]
[1758608114222,1.0062965,4194.7,4194.6,41.47181]
[1758608115830,0.5803965,4194.7,4194.6,41.47181]
[1758608116623,0.5803965,4194.7,4194.6,41.22881]
[1758608116819,0.5803965,4194.7,4194.6,43.37937612]
[1758608117027,0.2485965,4194.7,4194.6,41.47181]
[1758608121534,0.4628,4196.0,4195.9,0.42868]
[1758608121729,0.4628,4196.0,4195.9,5.78704612]
[1758608122629,0.4628,4196.0,4195.9,46.58704612]
[1758608123134,0.4628,4196.0,4195.9,46.34404612]
[1758608123340,0.4628,4196.0,4195.9,43.13624612]
[1758608123528,0.4628,4196.0,4195.9,43.37924612]
[1758608123731,0.4628,4196.0,4195.9,41.22868]
[1758608124028,0.3314,4195.7,4195.5,0.42872]
[1758608124234,0.7566,4195.6,4195.5,0.42872]
[1758608124439,0.7566,4195.6,4195.5,0.243]
[1758608124734,0.4252,4195.1,4195.0,41.22877]
[1758608125039,0.7566,4195.1,4195.0,41.47177]
[1758608130748,0.5529,4195.1,4195.0,41.47177]
[1758608130945,0.3314,4195.1,4195.0,41.47177]
[1758608133337,0.58608511,4195.1,4195.0,41.47177]
[1758608140049,0.58608511,4195.1,4195.0,41.22877]
[1758608140351,0.58608511,4195.1,4195.0,41.47177]
[1758608143455,1.01538511,4195.1,4195.0,0.42877]
[1758608143644,1.01538511,4195.1,4195.0,0.67177]
[1758608143850,2.92295123,4195.1,4195.0,0.67177]
[1758608144851,2.92300154,4195.1,4195.0,0.67177]
[1758608145255,1.01543542,4195.1,4195.0,0.67177]
[1758608146451,0.221,4194.8,4194.7,0.4288]
[1758608146657,0.99873542,4194.8,4194.7,0.6718]
[1758608150660,0.99873542,4194.8,4194.7,0.4288]
[1758608150856,0.99873542,4194.8,4194.7,0.6718]
[1758608156749,0.99873542,4194.8,4194.7,0.4288]
[1758608156964,0.99873542,4194.8,4194.7,0.6718]
[1758608157156,0.744,4194.8,4194.7,0.6718]
[1758608157455,0.996869,4194.8,4194.7,0.6718]
[1758608159361,0.996869,4194.8,4194.7,0.4288]
[1758608163562,0.681669,4194.8,4194.5,0.42882]
[1758608163768,2.97704928,4194.6,4194.5,0.34555486]
[1758608164068,0.4437,4194.4,4194.3,0.42884]
[1758608164266,1.020769,4194.4,4194.3,0.34868971]
[1758608166473,1.020769,4194.4,4194.2,0.42885]
[1758608166474,0.7679,4194.3,4194.2,0.42885]
[1758608166776,1.020769,4194.3,4194.2,0.42885]
[1758608169173,0.2238,4193.9,4193.8,40.8]
[1758608169375,0.7679,4193.7,4193.6,0.42891]
[1758608169577,0.4532,4193.0,4192.9,0.42898]
[1758608169868,3.35891828,4193.0,4192.9,0.42898]
[1758608170861,1.149769,4193.0,4192.9,0.42898]
[1758608173583,1.149769,4193.0,4192.9,0.42899]
[1758608174589,0.7679,4192.8,4192.7,0.429]
[1758608174780,1.020769,4192.8,4192.7,0.429]
[1758608176584,1.01997409,4192.8,4192.7,0.429]
[1758608182090,0.57627409,4192.8,4192.7,0.429]
[1758608182689,0.57627409,4192.8,4192.7,41.229]
[1758608183894,0.57627409,4192.8,4192.7,41.472]
[1758608184091,1.00987409,4192.8,4192.7,0.429]
[1758608184593,1.00987409,4192.8,4192.7,41.229]
[1758608184986,1.00987409,4192.8,4191.5,1.07283]
[1758608184987,0.1317,4192.5,4191.5,1.07283]
[1758608185185,0.7543,4192.3,4192.2,0.42905]
[1758608185383,1.00637409,4192.3,4192.2,0.63705]
[1758608186397,1.00637409,4192.3,4192.2,0.42905]
[1758608187999,0.68567409,4192.3,4191.4,3.2078]
[1758608188296,0.7543,4191.9,4191.8,0.42909]
[1758608188496,1.00637409,4191.9,4191.8,0.42909]
[1758608188792,0.886,4191.5,4191.4,0.86114]
[1758608188994,1.13807409,4191.5,4191.4,1.18594]
[1758608189204,0.78697409,4191.5,4191.4,1.18594]
[1758608190089,0.25207409,4191.5,4191.4,1.18594]
[1758608190290,0.57277409,4191.5,4191.4,1.18594]
[1758608190494,0.57277409,4191.5,4191.4,0.86114]
[1758608190495,1.12217409,4191.5,4191.4,0.86114]
[1758608190694,1.12217409,4191.5,4191.4,0.63714]
[1758608191202,1.12217409,4191.5,4191.4,0.83884]
[1758608192199,1.12217409,4191.5,4191.4,0.4097]
[1758608194200,1.12217409,4191.5,4191.4,0.208]
[1758608194509,0.5532,4191.0,4190.9,0.2144]
[1758608194804,1.14037409,4191.0,4190.9,41.44359]
[1758608195899,1.14037409,4191.0,4190.9,41.74949]
[1758608197108,1.14307045,4191.0,4190.9,41.74949]
[1758608197601,1.14307045,4191.0,4190.9,41.99249]
[1758608198605,0.25477045,4191.0,4190.9,41.99249]
[1758608198803,0.71607045,4191.0,4190.9,41.99249]
[1758608199101,0.71607045,4191.0,4190.9,41.68659]
[1758608199303,0.71607045,4191.0,4190.9,41.99249]
[1758608200201,0.25477045,4191.0,4190.9,44.20163928]
[1758608200395,4.5e-07,4191.0,4190.9,48.44024928]
[1758608201803,4.5e-07,4191.0,4190.9,48.20163928]
[1758608203010,4.5e-07,4191.0,4190.9,48.44024928]
[1758608203505,4.5e-07,4191.0,4190.9,44.20163928]
[1758608204006,4.5e-07,4191.0,4190.9,43.95863928]
[1758608204306,4.5e-07,4191.0,4190.9,44.20163928]
[1758608204706,4.5e-07,4191.0,4190.9,48.20163928]
[1758608206111,0.33510045,4191.0,4190.9,41.74949]
[1758608206404,4.5e-07,4191.0,4190.9,41.68659]
[1758608206609,4.5e-07,4191.0,4190.9,45.68659]
[1758608210017,4.5e-07,4191.0,4190.9,41.68659]
[1758608213820,0.7621,4191.9,4191.8,0.6435]
[1758608214021,1.01368431,4191.9,4191.8,0.8865]
[1758608215619,0.80487549,4191.9,4191.8,1.3941]
[1758608216810,0.25177549,4191.9,4191.8,3.60324928]
[1758608217012,3.7609,4192.9,4192.8,1.151]
[1758608217214,3.2078,4192.9,4192.8,1.394]
[1758608217515,3.2078,4192.9,4192.8,42.194]
[1758608217717,3.5429,4192.9,4192.8,42.194]
[1758608218710,0.94144,4193.1,4193.0,1.15098]
[1758608218916,0.94144,4193.1,4193.0,3.30446786]
[1758608219722,0.94144,4193.1,4193.0,2.87548786]
[1758608220423,1.37041,4193.1,4193.0,2.87548786]
[1758608223820,3.49189786,4193.1,4193.0,0.2144]
[1758608224023,0.42899,4192.9,4192.8,40.8]
[1758608224225,0.75519,4192.9,4192.8,41.043]
[1758608226423,1.17649,4192.9,4192.8,0.243]
[1758608226627,1.17649,4192.9,4192.1,3.2078]
[1758608226628,1.17655,4192.4,4192.3,0.4236]
[1758608226828,1.17655,4192.4,4192.3,0.6666]
[1758608227029,0.3262,4192.3,4192.2,40.8]
[1758608227230,0.3262,4192.3,4192.2,41.043]
[1758608228725,0.3262,4192.5,4192.4,0.7331]
[1758608228919,3.3312,4193.0,4192.4,0.7331]
[1758608228920,4.3217,4193.0,4192.9,0.2183]
[1758608229231,5.1096985,4193.0,4192.9,0.2183]
[1758608229431,5.2956785,4193.0,4192.9,0.4236]
[1758608230129,5.2956785,4193.0,4192.5,1.91048786]
[1758608230130,0.85032,4192.6,4192.5,0.2183]
[1758608230330,1.4152304,4192.6,4192.5,0.4613]
[1758608230529,0.9862104,4192.6,4192.5,0.6666]
[1758608230729,0.9862104,4192.6,4192.5,0.9761]
[1758608230930,0.5649104,4192.6,4192.5,2.88658786]
[1758608231438,0.2387104,4192.6,4192.5,2.88658786]
[1758608231622,0.2387104,4192.6,4192.5,6.09438786]
[1758608232428,0.38834,4193.1,4193.0,0.2183]
[1758608232628,0.95326998,4193.1,4193.0,0.9761]
[1758608233035,1.38223998,4193.1,4193.0,0.9761]
[1758608233328,1.80353998,4193.1,4193.0,0.6666]
[1758608237031,1.80355541,4193.1,4193.0,0.6666]
[1758608239828,3.334,4194.0,4193.0,10.21008786]
[1758608240034,0.78878503,4193.9,4193.8,0.7487]
[1758608240228,0.78878503,4193.9,4193.8,0.9917]
[1758608240433,0.57058503,4193.9,4193.8,41.7917]
[1758608241124,0.23878503,4193.9,4193.8,43.70218786]
[1758608243933,3.3312,4194.5,4193.8,43.70218786]
[1758608243934,0.6734,4194.5,4194.4,0.7487]
[1758608244130,0.6734,4194.5,4194.4,0.9917]
[1758608245129,0.8887,4194.5,4194.4,0.9917]
[1758608245328,0.8887,4194.5,4194.4,0.6739]
[1758608249828,0.8887,4194.5,4194.4,0.9917]
[1758608250738,0.8887,4194.5,4194.4,0.6739]
[1758608252945,0.8887,4194.5,4194.4,0.4563]
[1758608255845,1.11483538,4194.5,4194.4,0.9877]
[1758608257537,1.11483538,4194.5,4194.4,2.57298786]
[1758608258349,1.11492697,4194.5,4194.4,2.57298786]
[1758608259449,0.77622697,4194.5,4194.4,2.89818786]
[1758608260048,0.91002697,4194.5,4194.4,2.89818786]
[1758608260847,3.2078,4195.1,4195.0,0.1289]
[1758608261147,3.2078,4195.1,4195.0,3.02418786]
[1758608261447,3.2078,4195.1,4195.0,43.82418786]
[1758608262847,0.5132,4195.3,4195.2,0.63325]
[1758608263045,0.7173,4195.3,4195.2,1.20735]
[1758608263738,0.7173,4195.3,4195.2,0.7786]
[1758608263944,0.7173,4195.3,4195.2,0.243]
[1758608264251,0.7173,4195.3,4195.0,40.8]
[1758608264252,0.7173,4195.1,4195.0,40.8]
[1758608264443,0.7173,4195.1,4195.0,41.043]
[1758608264951,0.7173,4195.1,4195.0,41.3741]
[1758608265246,0.7173,4195.1,4195.0,0.7786]
[1758608265754,0.7173,4195.1,4195.0,41.5786]
[1758608267348,0.4085,4195.5,4195.4,0.7418]
[1758608267752,1.09064386,4195.5,4195.4,0.7418]
[1758608267947,1.26564386,4195.5,4195.4,0.7418]
[1758608268749,1.39944386,4195.5,4195.4,0.2045]
[1758608269057,1.26564386,4195.5,4195.4,2.89528786]
[1758608270747,1.26564386,4195.5,4195.4,0.9848]
[1758608272858,1.48634932,4195.5,4195.4,0.9848]
[1758608274352,1.62014932,4195.5,4195.4,0.243]
[1758608275854,0.4085,4195.2,4195.1,0.5356]
[1758608276167,0.93800546,4195.2,4195.1,0.7776]
[1758608277257,0.93800546,4195.2,4195.1,0.5356]
[1758608277448,1.4869617,4195.2,4195.1,0.242]
[1758608277649,0.3088,4195.1,4195.0,40.8]
[1758608277858,0.8511,4194.5,4194.4,3.9496]
[1758608278060,1.07180546,4194.5,4194.4,4.1916]
[1758608278260,1.07180546,4194.5,4194.4,44.9916]
[1758608278561,1.07180546,4194.5,4194.4,44.2498]
[1758608278754,1.07180546,4194.5,4194.4,41.042]
[1758608278953,1.07180546,4194.5,4194.4,41.3731]
[1758608280968,0.93800546,4194.5,4194.4,41.3731]
[1758608281259,0.93811037,4194.5,4194.4,41.3731]
[1758608282162,0.22081037,4194.5,4194.4,44.81931]
[1758608282758,0.22081037,4194.5,4194.4,44.5809]
[1758608283264,0.22081037,4194.5,4194.4,48.81931]
[1758608283462,0.3226,4195.5,4195.4,0.7208]
[1758608283659,1.0946485,4195.5,4195.4,0.7208]
[1758608284163,1.2180485,4195.5,4195.4,0.7208]
[1758608284351,1.4298485,4195.5,4195.4,0.202]
[1758608284557,1.4298485,4195.5,4195.0,0.202]
[1758608284558,1.18607,4195.1,4195.0,0.202]
[1758608284757,1.7352185,4195.1,4195.0,0.444]
[1758608284953,0.42878,4194.9,4194.8,0.202]
[1758608285155,3.40451205,4195.5,4194.8,0.202]
[1758608285156,0.1234,4195.5,4194.9,0.304]
[1758608285357,0.1234,4195.5,4195.3,0.202]
[1758608285358,1.41169364,4195.4,4195.3,0.202]
[1758608285656,1.73429364,4195.4,4195.3,0.202]
[1758608286258,1.09376364,4195.4,4195.3,2.93010205]
[1758608286457,0.54826364,4195.4,4195.3,2.93010205]
[1758608286654,0.3226,4195.9,4195.6,1.14951]
[1758608286963,0.55557,4196.0,4195.6,42.19151]
[1758608286964,4.07863931,4195.7,4195.6,42.19151]
[1758608287865,0.3226,4196.0,4195.9,1.14948]
[1758608288065,0.87077286,4196.0,4195.9,3.60078205]
[1758608288367,0.5455,4196.0,4195.9,3.60078205]
[1758608291166,0.5455,4196.4,4196.3,1.14943]
[1758608291360,0.5455,4196.4,4196.3,3.60073205]
[1758608292565,0.5455,4196.4,4196.3,0.9628]
[1758608292760,0.5455,4196.4,4196.0,0.304]
[1758608292761,0.7573,4196.4,4196.0,0.304]
[1758608292969,0.7573,4196.4,4196.3,0.242]
[1758608293268,1.30464841,4196.4,4196.3,0.242]
[1758608293461,1.30464841,4196.4,4196.3,0.444]
[1758608293661,1.30464841,4196.4,4196.3,0.202]
[1758608295169,0.7573,4196.4,4196.3,0.202]
[1758608295568,0.9747622,4196.4,4196.3,0.202]
[1758608297367,0.9747622,4196.4,4196.3,0.4168]
[1758608297563,0.9747622,4196.4,4196.3,0.7368]
[1758608297964,0.9747622,4196.4,4196.3,0.202]
[1758608301881,0.5400622,4196.4,4196.3,0.7268]
[1758608302174,0.9611622,4196.4,4196.3,0.7268]
[1758608303279,0.7440622,4196.4,4196.3,0.7268]
[1758608303489,0.2174622,4196.4,4196.3,0.7268]
[1758608303876,0.2174622,4196.4,4196.3,0.9688]
[1758608304276,0.5255622,4196.4,4196.3,0.9688]
[1758608304466,0.2174622,4196.4,4196.3,0.9688]
[1758608304866,0.2174622,4196.4,4196.3,3.17810205]
[1758608305271,0.2174622,4196.4,4196.3,43.97810205]
[1758608305873,0.3081,4196.4,4196.3,43.97810205]
[1758608306081,0.52284819,4196.4,4196.3,43.97810205]
[1758608306783,0.52284819,4196.4,4196.3,43.73610205]
[1758608306973,0.52284819,4196.4,4196.3,41.4488]
[1758608308081,0.52284819,4196.4,4196.3,43.97810205]
[1758608310074,0.52294061,4196.4,4196.3,43.97810205]
[1758608310273,0.21484061,4196.4,4196.3,43.97810205]
[1758608310771,0.53624061,4196.4,4196.3,43.97810205]
[1758608311276,0.21484061,4196.4,4196.3,43.97810205]
[1758608311977,0.5325,4196.9,4196.8,0.4321]
[1758608312176,0.74740193,4196.9,4196.8,1.0063]
[1758608312372,1.29461264,4196.9,4196.8,1.0063]
[1758608313089,1.29461264,4196.9,4196.8,1.43489]
[1758608314376,1.49801264,4196.9,4196.8,1.43489]
[1758608317989,0.76211264,4196.9,4196.8,1.43489]
[1758608318387,0.21540078,4196.9,4196.8,1.43489]
[1758608318696,3.9437,4197.3,4197.2,0.86065]
[1758608318885,4.70739785,4197.3,4197.2,0.86065]
[1758608321296,4.70739785,4197.3,4197.2,1.19285]
[1758608321496,1.49959785,4197.3,4197.2,0.86065]
[1758608323699,1.29619785,4197.3,4197.2,1.19285]
[1758608323900,1.49959785,4197.3,4197.2,0.86065]
[1758608324301,1.49959785,4197.3,4197.2,0.64045]
[1758608326208,1.49959785,4197.3,4197.2,3.06995205]
[1758608326401,1.49959785,4197.3,4197.2,3.40215205]
[1758608326607,1.49945748,4197.3,4197.2,3.40215205]
[1758608326807,1.49945748,4197.3,4197.2,3.06995205]
[1758608327407,1.49945748,4197.3,4197.2,2.64140205]
[1758608327603,1.49945748,4197.3,4197.2,2.42120205]
[1758608331107,0.5325,4197.2,4197.1,0.67055]
[1758608331408,0.95114016,4197.2,4197.1,0.242]
[1758608331616,0.7359,4196.8,4196.7,2.84980205]
[1758608331805,0.7359,4196.8,4196.7,3.64420205]
[1758608331806,0.95114016,4196.8,4196.7,3.64420205]
[1758608336220,0.53664016,4196.8,4196.7,3.64420205]
[1758608338521,0.21524016,4196.8,4196.7,3.64420205]
[1758608338915,0.53664016,4196.8,4196.7,3.64420205]
[1758608340519,0.96894016,4196.8,4196.7,1.4349]
[1758608342422,0.74774016,4196.8,4196.7,1.4349]
[1758608342622,0.74774016,4196.8,4196.7,3.34165482]
[1758608343517,0.96894016,4196.8,4196.7,3.34165482]
[1758608343716,0.21524016,4196.8,4196.7,3.33725482]
[1758608345926,0.2162,4197.1,4196.7,2.58085482]
[1758608346130,0.21422134,4197.0,4196.9,1.19108]
[1758608346315,0.21422134,4197.0,4196.9,3.33983482]
[1758608346518,1.09803023,4197.0,4196.9,3.33983482]
[1758608347127,0.21422134,4197.0,4196.9,3.33983482]
[1758608349628,0.21422134,4197.0,4196.9,6.54763482]
[1758608350129,0.54912134,4197.0,4196.9,6.54763482]
[1758608350429,1.11462134,4197.0,4196.9,6.21983482]
[1758608350618,1.11462134,4197.0,4196.9,5.54313482]
[1758608350818,1.11462134,4197.0,4196.9,5.78513482]
[1758608351421,1.11462134,4197.0,4196.9,2.57733482]
[1758608354630,1.11462134,4197.0,4196.9,2.79733482]
[1758608359125,1.11462134,4197.0,4196.9,3.10883482]
[1758608360428,1.11462134,4197.0,4196.9,0.22]
[1758608360625,0.7354,4196.8,4196.7,2.11905482]
[1758608360821,0.94962134,4196.8,4196.7,2.36105482]
[1758608361036,0.94962134,4196.8,4196.7,2.58315482]
[1758608361337,0.94962134,4196.8,4196.7,2.89465482]
[1758608361631,0.94962134,4196.8,4196.7,2.34115482]
[1758608361829,0.8603,4196.5,4196.4,2.11905482]
[1758608362137,1.07452134,4196.5,4196.4,2.36105482]
[1758608363936,1.07452134,4196.5,4196.4,0.9879]
[1758608364240,0.7354,4196.1,4196.0,0.2123]
[1758608364439,0.8603,4196.0,4195.9,2.11905482]
[1758608364638,1.07452134,4196.0,4195.9,42.91905482]
[1758608364838,0.21422134,4196.0,4195.9,43.23055482]
[1758608365036,0.21422134,4196.0,4195.9,47.46888482]
[1758608365241,3.2078,4196.3,4196.2,3.08130482]
[1758608365433,3.2078,4196.3,4196.2,3.32330482]
[1758608366334,0.5328,4196.7,4196.6,1.17451]
[1758608366635,0.5328,4196.7,4196.6,44.12326482]
[1758608367533,0.1281,4197.0,4196.9,0.42858]
[1758608367845,3.7406,4197.3,4197.2,0.86295]
[1758608368043,4.29800977,4197.3,4197.2,3.08120482]
[1758608368537,4.29800977,4197.3,4197.2,1.17445]
[1758608368838,3.9432,4197.3,4197.2,3.08120482]
[1758608372034,0.7354,4197.3,4197.2,3.08120482]
[1758608373330,0.3269,4197.3,4197.2,3.32320482]
[1758608373533,1.40669,4197.8,4197.7,0.2111]
[1758608373834,1.96407284,4197.8,4197.7,0.2111]
[1758608374027,0.7362,4197.6,4197.2,0.242]
[1758608374234,0.7362,4197.3,4197.2,2.78839482]
[1758608374642,0.7362,4197.3,4197.2,3.34409482]
[1758608375444,0.7362,4197.3,4197.2,2.76889482]
[1758608376045,0.7362,4197.3,4197.2,3.10209482]
[1758608376544,0.3146,4197.3,4197.2,3.10209482]
[1758608376750,0.5232,4197.3,4197.2,3.10209482]
[1758608377144,0.76872171,4197.3,4197.2,3.10209482]
[1758608378946,0.98172171,4197.3,4197.2,3.10209482]
[1758608380542,0.98172171,4197.3,4197.2,3.10210482]
[1758608384051,0.98172171,4197.3,4197.2,0.4336]
[1758608384254,0.7362,4197.2,4197.1,0.67055]
[1758608384453,0.98172171,4197.2,4197.1,0.67055]
[1758608384749,0.83186171,4197.3,4197.2,0.3332]
[1758608385252,0.4216,4197.3,4197.2,0.5443]
[1758608385451,0.2086,4197.3,4197.2,0.7668]
[1758608385757,0.4216,4197.3,4197.2,0.7668]
[1758608387454,0.6171,4197.3,4197.2,0.5443]
[1758608387656,0.4216,4197.3,4197.2,0.5443]
[1758608388056,0.6636,4197.3,4197.2,0.5443]
[1758608388454,0.8591,4197.3,4197.2,0.5443]
[1758608389260,0.2086,4197.3,4197.2,0.7668]
[1758608389565,0.8591,4197.3,4197.2,0.7668]
[1758608389749,0.6636,4197.3,4197.2,0.7668]
[1758608390056,0.8591,4197.3,4197.2,0.7668]
[1758608391457,1.41871411,4197.3,4197.2,0.7668]
[1758608392256,0.6636,4197.3,4197.2,2.67355482]
[1758608393559,1.22328254,4197.3,4197.2,0.7668]
[1758608394051,1.41878254,4197.3,4197.2,0.7668]
[1758608396247,1.41878254,4197.3,4197.2,0.3332]
[1758608396657,1.66055811,4197.3,4197.2,0.3332]
[1758608396859,1.41855811,4197.3,4197.2,0.3332]
[1758608397072,1.66055811,4197.3,4197.2,0.3332]
[1758608397452,1.66055811,4197.3,4197.0,0.13]
[1758608397453,0.2086,4197.1,4197.0,0.13]